fUSD/lending_fUSD_20240424
["ID","MTS","AMOUNT","RATE_DAILY","PERIOD"]
[323421565,1713975065669,-3081.09684684,0.0001186,2]
[323421566,1713975066828,-1231.178286,9.466e-05,2]
[323421567,1713975066838,-150.3,0.00010665,2]
[323421568,1713975066849,-500.0,0.00010958,2]
[323421569,1713975066859,-500.0,0.00010958,2]
[323421570,1713975066869,-500.0,0.00010958,2]
[323421571,1713975066879,-500.0,0.00010958,2]
[323421572,1713975066890,-500.0,0.00011232,2]
[323421573,1713975066901,-155.67069953,0.00011232,2]
[323421574,1713975066921,-150.3,0.00011221,2]
[323421575,1713975066932,-344.32930047,0.00011232,2]
[323421576,1713975066941,-500.0,0.00011232,2]
[323421577,1713975066952,-500.0,0.00011506,2]
[323421578,1713975066961,-500.0,0.00011506,2]
[323421579,1713975066971,-500.0,0.0001178,2]
[323421580,1713975066980,-500.0,0.0001178,2]
[323421581,1713975066990,-714.9552621,0.0001186,2]
[323421582,1713975067002,-306.89631294,0.0001186,2]
[323421583,1713975067017,-1516.0000001,0.0001186,2]
[323421584,1713975067064,-933.09546432,0.0001186,2]
[323421585,1713975067075,-19389.3,0.0001186,2]
[323421586,1713975067104,-699.2811612,0.0001186,2]
[323421587,1713975067125,-257764.92915698,0.0001186,2]
[323421588,1713975067134,-5894.0,0.00011861,2]
[323421589,1713975067143,-5729.0,0.00011861,2]
[323421590,1713975067153,-2706.0,0.00011861,2]
[323421591,1713975067162,-37689.0,0.00011861,2]
[323421592,1713975067171,-1064.656,0.00011861,2]
[323421593,1713975067181,-735957.53432748,0.000119,2]
[323421594,1713975067191,-2100.0,0.000119,4]
[323421595,1713975067200,-333.72629271,0.00011949,2]
[323421596,1713975067210,-1413.46682491,0.00012,2]
[323421597,1713975067220,-2750.0,0.00012,2]
[323421598,1713975067229,-211.8,0.00012051,2]
[323421599,1713975067238,-2295.0,0.00012051,2]
[323421600,1713975067248,-1393.0,0.00012051,2]
[323421601,1713975067261,-462.0,0.00012051,2]
[323421602,1713975067271,-969.0,0.00012051,2]
[323421603,1713975067281,-541.0,0.00012051,2]
[323421604,1713975067291,-1228.0,0.00012051,2]
[323421605,1713975067302,-1256.0,0.00012051,2]
[323421606,1713975067315,-1858.0,0.00012051,2]
[323421607,1713975067325,-391.85,0.00012051,2]
[323421608,1713975067402,-512.398,0.00012051,2]
[323421609,1713975067413,-609.0,0.00012051,2]
[323421610,1713975067424,-807.0,0.00012051,2]
[323421611,1713975067435,-1478.334,0.00012051,2]
[323421612,1713975067447,-402.0,0.00012051,2]
[323421613,1713975067456,-2445.0,0.00012051,2]
[323421614,1713975067470,-151.071,0.00012051,2]
[323421615,1713975067480,-3120.0,0.00012051,2]
[323421616,1713975067490,-150.855,0.00012051,2]
[323421617,1713975067500,-214.0,0.00012051,2]
[323421618,1713975067516,-1640.0,0.00012051,2]
[323421619,1713975067525,-444.492,0.00012051,2]
[323421620,1713975067534,-1142.0,0.00012051,2]
[323421621,1713975067545,-406.39,0.00012053,2]
[323421622,1713975067555,-643.55276729,0.00012053,2]
[323421623,1713975067565,-639.88,0.00012053,2]
[323421624,1713975067574,-500.0,0.00012053,2]
[323421625,1713975067583,-500.0,0.00012054,2]
[323421626,1713975067593,-500.0,0.00012054,2]
[323421627,1713975067603,-500.0,0.00012054,2]
[323421628,1713975067614,-500.0,0.00012054,2]
[323421629,1713975067624,-500.0,0.00012054,2]
[323421630,1713975067634,-701.17,0.00012054,2]
[323421631,1713975067644,-500.0,0.00012054,2]
[323421632,1713975067654,-208.65,0.00012054,2]
[323421633,1713975067664,-500.0,0.00012054,2]
[323421634,1713975067673,-500.0,0.00012054,2]
[323421635,1713975067683,-500.0,0.00012054,2]
[323421636,1713975067693,-500.0,0.00012054,2]
[323421637,1713975067702,-500.0,0.00012054,2]
[323421638,1713975067712,-500.0,0.00012054,2]
[323421639,1713975067721,-500.0,0.00012054,2]
[323421640,1713975067730,-501.13,0.00012054,2]
[323421641,1713975067738,-1093.68,0.00012054,2]
[323421642,1713975067748,-308.4,0.00012054,2]
[323421643,1713975067759,-661.58,0.00012054,2]
[323421644,1713975067769,-500.0,0.00012054,2]
[323421645,1713975067778,-500.0,0.00012054,2]
[323421646,1713975067787,-500.0,0.00012054,2]
[323421647,1713975067797,-500.0,0.00012054,2]
[323421648,1713975067807,-496.88,0.00012054,2]
[323421649,1713975067817,-1054.9,0.00012054,2]
[323421650,1713975067826,-553.61,0.00012054,2]
[323421651,1713975067836,-500.0,0.00012054,2]
[323421652,1713975067846,-677.11,0.00012054,2]
[323421653,1713975067855,-266.46,0.00012054,2]
[323421654,1713975067865,-500.0,0.00012054,2]
[323421655,1713975067874,-2345.59,0.00012054,2]
[323421656,1713975067883,-500.0,0.00012054,2]
[323421657,1713975067893,-500.0,0.00012054,2]
[323421658,1713975067903,-538.91029396,0.00012054,2]
[323421659,1713975067912,-500.0,0.00012054,2]
[323421660,1713975067921,-651.05,0.00012054,2]
[323421661,1713975067932,-469.48,0.00012054,2]
[323421662,1713975067942,-500.0,0.00012054,2]
[323421663,1713975067952,-500.0,0.00012054,2]
[323421664,1713975067962,-713.41,0.00012054,2]
[323421665,1713975067971,-637.45,0.00012054,2]
[323421666,1713975067982,-6719.4877111,0.00012054,2]
[323421667,1713975067992,-500.0,0.00012054,2]
[323421668,1713975068002,-500.0,0.00012054,2]
[323421669,1713975068016,-947.39,0.00012054,2]
[323421670,1713975068025,-1038.22954929,0.00012054,2]
[323421671,1713975068036,-500.0,0.00012054,2]
[323421672,1713975068046,-1548.25,0.00012054,2]
[323421673,1713975068056,-500.0,0.00012054,2]
[323421674,1713975068065,-538.51,0.00012054,2]
[323421675,1713975068075,-500.0,0.00012054,2]
[323421676,1713975068085,-601.98,0.00012054,2]
[323421677,1713975068095,-500.0,0.00012054,2]
[323421678,1713975068105,-1546.08,0.00012054,2]
[323421679,1713975068115,-1643.74,0.00012054,2]
[323421680,1713975068125,-500.0,0.00012054,2]
[323421681,1713975068135,-1316.65,0.00012054,2]
[323421682,1713975068145,-500.0,0.00012054,2]
[323421683,1713975068155,-500.0,0.00012054,2]
[323421684,1713975068166,-500.0,0.00012054,2]
[323421685,1713975068176,-500.0,0.00012054,2]
[323421686,1713975068186,-1632.07,0.00012054,2]
[323421687,1713975068196,-599.31,0.00012054,2]
[323421688,1713975068205,-500.0,0.00012054,2]
[323421689,1713975068214,-500.0,0.00012054,2]
[323421690,1713975068224,-500.0,0.00012054,2]
[323421691,1713975068234,-500.0,0.00012054,2]
[323421692,1713975068243,-1204.79,0.00012054,2]
[323421693,1713975068253,-328.82,0.00012054,2]
[323421694,1713975068267,-500.0,0.00012054,2]
[323421695,1713975068277,-500.0,0.00012054,2]
[323421696,1713975068286,-1337.04,0.00012054,2]
[323421697,1713975068297,-500.0,0.00012054,2]
[323421698,1713975068306,-552.71,0.00012054,2]
[323421699,1713975068315,-500.0,0.00012054,2]
[323421700,1713975068325,-1277.94,0.00012054,2]
[323421701,1713975068335,-1449.27,0.00012054,2]
[323421702,1713975068344,-804.1,0.00012054,2]
[323421703,1713975068353,-514.74,0.00012054,2]
[323421704,1713975068363,-1275.06,0.00012054,2]
[323421705,1713975068374,-2282.7,0.00012054,2]
[323421706,1713975068384,-500.0,0.00012054,2]
[323421707,1713975068395,-500.0,0.00012054,2]
[323421708,1713975068404,-500.0,0.00012054,2]
[323421709,1713975068414,-500.0,0.00012054,2]
[323421710,1713975068424,-556.22,0.00012054,2]
[323421711,1713975068435,-500.0,0.00012054,2]
[323421712,1713975068449,-1748.23,0.00012054,2]
[323421713,1713975068460,-583.23,0.00012054,2]
[323421714,1713975068475,-500.0,0.00012054,2]
[323421715,1713975068487,-500.0,0.00012054,2]
[323421716,1713975068498,-500.0,0.00012054,2]
[323421717,1713975068510,-1382.13,0.00012054,2]
[323421718,1713975068520,-500.0,0.00012054,2]
[323421719,1713975068531,-845.97,0.00012054,2]
[323421720,1713975068541,-500.0,0.00012054,2]
[323421721,1713975068551,-500.0,0.00012054,2]
[323421722,1713975068561,-1575.45,0.00012054,2]
[323421723,1713975068570,-500.0,0.00012054,2]
[323421724,1713975068579,-3531.26,0.00012054,2]
[323421725,1713975068588,-214.66086343,0.00012054,2]
[323421726,1713975068598,-500.0,0.00012054,2]
[323421727,1713975068607,-512.09,0.00012054,2]
[323421728,1713975068617,-1092.44,0.00012054,2]
[323421729,1713975068626,-858.77,0.00012054,2]
[323421730,1713975068636,-500.0,0.00012054,2]
[323421731,1713975068646,-572.61,0.00012054,2]
[323421732,1713975068655,-617.78,0.00012054,2]
[323421733,1713975068665,-764.69,0.00012054,2]
[323421734,1713975068674,-500.0,0.00012054,2]
[323421735,1713975068683,-2554.02,0.00012054,2]
[323421736,1713975068693,-560.85,0.00012054,2]
[323421737,1713975068703,-617.37,0.00012054,2]
[323421738,1713975068712,-525.54,0.00012054,2]
[323421739,1713975068721,-4112.87,0.00012054,2]
[323421740,1713975068732,-441.79748502,0.00012054,2]
[323421741,1713975068741,-3153.58,0.00012054,2]
[323421742,1713975068749,-500.0,0.00012054,2]
[323421743,1713975068759,-500.0,0.00012054,2]
[323421744,1713975068768,-570.08,0.00012054,2]
[323421745,1713975068777,-508.88,0.00012054,2]
[323421746,1713975068786,-2477.2,0.00012054,2]
[323421747,1713975068795,-500.0,0.00012054,2]
[323421748,1713975068804,-2201.12,0.00012054,2]
[323421749,1713975068813,-500.0,0.00012054,2]
[323421750,1713975068822,-5992.35,0.00012054,2]
[323421751,1713975068831,-2026.18,0.00012054,2]
[323421752,1713975068841,-269.16,0.00012054,2]
[323421753,1713975068850,-1668.13,0.00012054,2]
[323421754,1713975068859,-1058.96,0.00012054,2]
[323421755,1713975068868,-762.56,0.00012054,2]
[323421756,1713975068878,-500.0,0.00012054,2]
[323421757,1713975068887,-500.0,0.00012054,2]
[323421758,1713975068897,-746.71,0.00012054,2]
[323421759,1713975068907,-2247.38,0.00012054,2]
[323421760,1713975068916,-921.04,0.00012054,2]
[323421761,1713975068927,-1673.54,0.00012054,2]
[323421762,1713975068936,-3685.73,0.00012054,2]
[323421763,1713975068945,-656.32,0.00012054,2]
[323421764,1713975068954,-2811.27,0.00012054,2]
[323421765,1713975068964,-509.27,0.00012054,2]
[323421766,1713975068974,-2671.74,0.00012054,2]
[323421767,1713975068982,-5513.74,0.00012054,2]
[323421768,1713975068992,-1114.07,0.00012054,2]
[323421769,1713975069001,-1154.23,0.00012054,2]
[323421770,1713975069012,-1593.53,0.00012054,2]
[323421771,1713975069022,-500.0,0.00012054,2]
[323421772,1713975069031,-500.0,0.00012054,2]
[323421773,1713975069041,-4004.39,0.00012054,2]
[323421774,1713975069050,-1317.52,0.00012054,2]
[323421775,1713975069060,-500.0,0.00012054,2]
[323421776,1713975069069,-500.0,0.00012054,2]
[323421777,1713975069079,-500.0,0.00012054,2]
[323421778,1713975069088,-2096.21,0.00012054,2]
[323421779,1713975069097,-500.0,0.00012054,2]
[323421780,1713975069107,-1499.85,0.00012054,2]
[323421781,1713975069116,-7739.09,0.00012054,2]
[323421782,1713975069125,-6489.48,0.00012054,2]
[323421783,1713975069134,-500.0,0.00012054,2]
[323421784,1713975069143,-6709.5,0.00012054,2]
[323421785,1713975069152,-1241.14,0.00012054,2]
[323421786,1713975069162,-7800.58,0.00012054,2]
[323421787,1713975069171,-1638.25,0.00012054,2]
[323421788,1713975069181,-9800.45,0.00012054,2]
[323421789,1713975069191,-500.0,0.00012054,2]
[323421790,1713975069199,-500.0,0.00012054,2]
[323421791,1713975069209,-540.09,0.00012054,2]
[323421792,1713975069218,-567.21,0.00012054,2]
[323421793,1713975069227,-853.07,0.00012054,2]
[323421794,1713975069237,-2751.18,0.00012054,2]
[323421795,1713975069246,-3976.85,0.00012054,2]
[323421796,1713975069255,-500.0,0.00012054,2]
[323421797,1713975069267,-1150.81,0.00012054,2]
[323421798,1713975069277,-1213.77,0.00012054,2]
[323421799,1713975069286,-500.0,0.00012054,2]
[323421800,1713975069296,-580.88,0.00012054,2]
[323421801,1713975069306,-942.8,0.00012054,2]
[323421802,1713975069315,-1310.32,0.00012054,2]
[323421803,1713975069325,-2953.26,0.00012054,2]
[323421804,1713975069335,-3857.38,0.00012054,2]
[323421805,1713975069344,-3543.23,0.00012054,2]
[323421806,1713975069354,-500.0,0.00012054,2]
[323421807,1713975069363,-1990.18,0.00012054,2]
[323421808,1713975069372,-1615.9,0.00012054,2]
[323421809,1713975069382,-1255.15,0.00012054,2]
[323421810,1713975069391,-1736.9,0.00012054,2]
[323421811,1713975069400,-500.0,0.00012054,2]
[323421812,1713975069409,-4246.55,0.00012054,2]
[323421813,1713975069419,-1209.48,0.00012054,2]
[323421814,1713975069429,-538.27,0.00012054,2]
[323421815,1713975069443,-500.0,0.00012054,2]
[323421816,1713975069453,-500.0,0.00012054,2]
[323421817,1713975069462,-500.0,0.00012054,2]
[323421818,1713975069472,-668.98,0.00012054,2]
[323421819,1713975069482,-5498.77,0.00012054,2]
[323421820,1713975069493,-3053.03,0.00012054,2]
[323421821,1713975069503,-5912.38,0.00012054,2]
[323421822,1713975069513,-500.0,0.00012054,2]
[323421823,1713975069523,-1757.48,0.00012054,2]
[323421824,1713975069533,-2763.13,0.00012054,2]
[323421825,1713975069543,-1487.58,0.00012054,2]
[323421826,1713975069553,-3280.11,0.00012054,2]
[323421827,1713975069562,-2304.0,0.00012054,2]
[323421828,1713975069571,-1424.26,0.00012054,2]
[323421829,1713975069581,-500.0,0.00012054,2]
[323421830,1713975069590,-1030.88,0.00012054,2]
[323421831,1713975069601,-992.61,0.00012054,2]
[323421832,1713975069612,-1434.76,0.00012054,2]
[323421833,1713975069621,-11641.85,0.00012054,2]
[323421834,1713975069630,-191.14776903,0.00012054,2]
[323421835,1713975069640,-3505.18,0.00012054,2]
[323421836,1713975069649,-1930.1,0.00012054,2]
[323421837,1713975069658,-500.0,0.00012054,2]
[323421838,1713975069668,-1970.27,0.00012054,2]
[323421839,1713975069677,-500.0,0.00012054,2]
[323421840,1713975069686,-562.91,0.00012054,2]
[323421841,1713975069695,-2517.06,0.00012054,2]
[323421842,1713975069704,-500.0,0.00012054,2]
[323421843,1713975069713,-500.0,0.00012054,2]
[323421844,1713975069722,-500.0,0.00012054,2]
[323421845,1713975069731,-4317.51,0.00012054,2]
[323421846,1713975069741,-1075.09,0.00012054,2]
[323421847,1713975069750,-1035.94,0.00012054,2]
[323421848,1713975069759,-738.58,0.00012054,2]
[323421849,1713975069769,-2304.09,0.00012054,2]
[323421850,1713975069778,-500.0,0.00012054,2]
[323421851,1713975069787,-500.0,0.00012054,2]
[323421852,1713975069796,-2769.48,0.00012054,2]
[323421853,1713975069806,-500.0,0.00012054,2]
[323421854,1713975069815,-2951.97,0.00012054,2]
[323421855,1713975069825,-791.3,0.00012054,2]
[323421856,1713975069834,-2917.19,0.00012054,2]
[323421857,1713975069843,-1102.28,0.00012054,2]
[323421858,1713975069852,-1539.12,0.00012054,2]
[323421859,1713975069862,-642.43,0.00012054,2]
[323421860,1713975069870,-2323.89,0.00012054,2]
[323421861,1713975069879,-1532.48,0.00012054,2]
[323421862,1713975069888,-721.38,0.00012054,2]
[323421863,1713975069898,-500.0,0.00012054,2]
[323421864,1713975069907,-984.1,0.00012054,2]
[323421865,1713975069917,-5450.31,0.00012054,2]
[323421866,1713975069927,-500.0,0.00012054,2]
[323421867,1713975069936,-747.94,0.00012054,2]
[323421868,1713975069946,-943.66,0.00012054,2]
[323421869,1713975069955,-500.0,0.00012054,2]
[323421870,1713975069964,-1962.94,0.00012054,2]
[323421871,1713975069974,-552.6,0.00012054,2]
[323421872,1713975069983,-3999.16,0.00012054,2]
[323421873,1713975069994,-813.61,0.00012054,2]
[323421874,1713975070003,-5516.63,0.00012054,2]
[323421875,1713975070015,-500.0,0.00012054,2]
[323421876,1713975070025,-500.0,0.00012054,2]
[323421877,1713975070035,-1541.63,0.00012054,2]
[323421878,1713975070044,-2457.2,0.00012054,2]
[323421879,1713975070054,-2290.38,0.00012054,2]
[323421880,1713975070063,-683.96,0.00012054,2]
[323421881,1713975070073,-3942.88,0.00012054,2]
[323421882,1713975070083,-2482.14,0.00012054,2]
[323421883,1713975070092,-3891.45,0.00012054,2]
[323421884,1713975070102,-500.0,0.00012054,2]
[323421885,1713975070111,-500.0,0.00012054,2]
[323421886,1713975070120,-500.0,0.00012054,2]
[323421887,1713975070130,-1881.43,0.00012054,2]
[323421888,1713975070139,-2647.42,0.00012054,2]
[323421889,1713975070148,-808.74,0.00012054,2]
[323421890,1713975070158,-500.0,0.00012054,2]
[323421891,1713975070167,-5486.13,0.00012054,2]
[323421892,1713975070176,-544.73,0.00012054,2]
[323421893,1713975070185,-7550.02,0.00012054,2]
[323421894,1713975070194,-1639.04,0.00012054,2]
[323421895,1713975070203,-1479.48,0.00012054,2]
[323421896,1713975070213,-1225.74,0.00012054,2]
[323421897,1713975070222,-2521.41,0.00012054,2]
[323421898,1713975070231,-2002.08,0.00012054,2]
[323421899,1713975070240,-543.35,0.00012054,2]
[323421900,1713975070249,-500.0,0.00012054,2]
[323421901,1713975070261,-500.0,0.00012054,2]
[323421902,1713975070271,-8910.51,0.00012054,2]
[323421903,1713975070280,-2482.63,0.00012054,2]
[323421904,1713975070289,-6375.41,0.00012054,2]
[323421905,1713975070298,-1137.13,0.00012054,2]
[323421906,1713975070308,-500.0,0.00012054,2]
[323421907,1713975070316,-500.0,0.00012054,2]
[323421908,1713975070326,-611.67038316,0.00012054,2]
[323421909,1713975070335,-333.72629271,0.00012085,2]
[323421910,1713975070344,-150.0,0.00012192,2]
[323421911,1713975070354,-150.0,0.00012192,2]
[323421912,1713975070363,-150.0,0.00012192,2]
[323421913,1713975070372,-150.0,0.00012192,2]
[323421914,1713975070382,-150.0,0.00012192,2]
[323421915,1713975070391,-244.83,0.00012192,2]
[323421916,1713975070400,-150.0,0.00012192,2]
[323421917,1713975070410,-150.0,0.00012192,2]
[323421918,1713975070420,-150.0,0.00012192,2]
[323421919,1713975070429,-150.0,0.00012192,2]
[323421920,1713975070440,-333.72629271,0.00012221,2]
[323421921,1713975070449,-515.0,0.00012301,2]
[323421922,1713975070458,-170.55,0.0001232,2]
[323421923,1713975070470,-282.52,0.00012327,2]
[323421924,1713975070479,-1684.0,0.00012328,2]
[323421925,1713975070489,-500.0,0.00012328,2]
[323421926,1713975070498,-500.0,0.00012328,2]
[323421927,1713975070511,-500.0,0.00012328,2]
[323421928,1713975070521,-500.0,0.00012328,2]
[323421929,1713975070530,-500.0,0.00012328,2]
[323421930,1713975070540,-701.17,0.00012328,2]
[323421931,1713975070549,-500.0,0.00012328,2]
[323421932,1713975070559,-576.33,0.00012328,2]
[323421933,1713975070568,-500.0,0.00012328,2]
[323421934,1713975070577,-500.0,0.00012328,2]
[323421935,1713975070586,-500.0,0.00012328,2]
[323421936,1713975070596,-500.0,0.00012328,2]
[323421937,1713975070605,-500.0,0.00012328,2]
[323421938,1713975070614,-500.0,0.00012328,2]
[323421939,1713975070623,-501.13,0.00012328,2]
[323421940,1713975070633,-1093.68,0.00012328,2]
[323421941,1713975070643,-661.58,0.00012328,2]
[323421942,1713975070653,-500.0,0.00012328,2]
[323421943,1713975070663,-500.0,0.00012328,2]
[323421944,1713975070673,-500.0,0.00012328,2]
[323421945,1713975070682,-500.0,0.00012328,2]
[323421946,1713975070692,-1054.9,0.00012328,2]
[323421947,1713975070702,-553.61,0.00012328,2]
[323421948,1713975070711,-500.0,0.00012328,2]
[323421949,1713975070721,-677.11,0.00012328,2]
[323421950,1713975070730,-500.0,0.00012328,2]
[323421951,1713975070740,-2345.59,0.00012328,2]
[323421952,1713975070750,-500.0,0.00012328,2]
[323421953,1713975070763,-500.0,0.00012328,2]
[323421954,1713975070772,-500.0,0.00012328,2]
[323421955,1713975070781,-651.05,0.00012328,2]
[323421956,1713975070790,-500.0,0.00012328,2]
[323421957,1713975070798,-500.0,0.00012328,2]
[323421958,1713975070808,-713.41,0.00012328,2]
[323421959,1713975070818,-637.45,0.00012328,2]
[323421960,1713975070827,-535.02237028,0.00012328,2]
[323421961,1713975070836,-500.0,0.00012328,2]
[323421962,1713975070845,-947.39,0.00012328,2]
[323421963,1713975070855,-500.0,0.00012328,2]
[323421964,1713975070864,-1548.25,0.00012328,2]
[323421965,1713975070874,-500.0,0.00012328,2]
[323421966,1713975070883,-538.51,0.00012328,2]
[323421967,1713975070893,-500.0,0.00012328,2]
[323421968,1713975070902,-601.98,0.00012328,2]
[323421969,1713975070912,-500.0,0.00012328,2]
[323421970,1713975070922,-1546.08,0.00012328,2]
[323421971,1713975070932,-1643.74,0.00012328,2]
[323421972,1713975070941,-500.0,0.00012328,2]
[323421973,1713975070951,-1316.65,0.00012328,2]
[323421974,1713975070960,-500.0,0.00012328,2]
[323421975,1713975070970,-500.0,0.00012328,2]
[323421976,1713975070980,-500.0,0.00012328,2]
[323421977,1713975070989,-500.0,0.00012328,2]
[323421978,1713975070999,-1632.07,0.00012328,2]
[323421979,1713975071011,-599.31,0.00012328,2]
[323421980,1713975071021,-500.0,0.00012328,2]
[323421981,1713975071031,-500.0,0.00012328,2]
[323421982,1713975071041,-500.0,0.00012328,2]
[323421983,1713975071051,-500.0,0.00012328,2]
[323421984,1713975071061,-1204.79,0.00012328,2]
[323421985,1713975071070,-328.82,0.00012328,2]
[323421986,1713975071080,-500.0,0.00012328,2]
[323421987,1713975071089,-500.0,0.00012328,2]
[323421988,1713975071099,-1337.04,0.00012328,2]
[323421989,1713975071109,-500.0,0.00012328,2]
[323421990,1713975071118,-552.71,0.00012328,2]
[323421991,1713975071128,-500.0,0.00012328,2]
[323421992,1713975071138,-1277.94,0.00012328,2]
[323421993,1713975071147,-1449.27,0.00012328,2]
[323421994,1713975071157,-804.1,0.00012328,2]
[323421995,1713975071166,-514.74,0.00012328,2]
[323421996,1713975071176,-1275.06,0.00012328,2]
[323421997,1713975071185,-2282.7,0.00012328,2]
[323421998,1713975071195,-500.0,0.00012328,2]
[323421999,1713975071205,-500.0,0.00012328,2]
[323422000,1713975071214,-376.0,0.00012328,2]
[323422001,1713975071225,-500.0,0.00012328,2]
[323422002,1713975071235,-556.22,0.00012328,2]
[323422003,1713975071245,-500.0,0.00012328,2]
[323422004,1713975071256,-1748.23,0.00012328,2]
[323422005,1713975071269,-583.23,0.00012328,2]
[323422006,1713975071280,-500.0,0.00012328,2]
[323422007,1713975071290,-500.0,0.00012328,2]
[323422008,1713975071300,-500.0,0.00012328,2]
[323422009,1713975071311,-500.0,0.00012328,2]
[323422010,1713975071321,-1382.13,0.00012328,2]
[323422011,1713975071331,-845.97,0.00012328,2]
[323422012,1713975071341,-500.0,0.00012328,2]
[323422013,1713975071351,-500.0,0.00012328,2]
[323422014,1713975071362,-1575.45,0.00012328,2]
[323422015,1713975071372,-493.22,0.00012328,2]
[323422016,1713975071382,-3531.26,0.00012328,2]
[323422017,1713975071392,-500.0,0.00012328,2]
[323422018,1713975071402,-512.09,0.00012328,2]
[323422019,1713975071412,-1092.44,0.00012328,2]
[323422020,1713975071422,-858.77,0.00012328,2]
[323422021,1713975071433,-500.0,0.00012328,2]
[323422022,1713975071447,-572.61,0.00012328,2]
[323422023,1713975071457,-617.78,0.00012328,2]
[323422024,1713975071467,-764.69,0.00012328,2]
[323422025,1713975071477,-500.0,0.00012328,2]
[323422026,1713975071488,-2554.02,0.00012328,2]
[323422027,1713975071498,-560.85,0.00012328,2]
[323422028,1713975071510,-617.37,0.00012328,2]
[323422029,1713975071521,-525.54,0.00012328,2]
[323422030,1713975071532,-4112.87,0.00012328,2]
[323422031,1713975071543,-3153.58,0.00012328,2]
[323422032,1713975071555,-500.0,0.00012328,2]
[323422033,1713975071565,-570.08,0.00012328,2]
[323422034,1713975071575,-500.0,0.00012328,2]
[323422035,1713975071585,-508.88,0.00012328,2]
[323422036,1713975071595,-1856.06134606,0.00012328,2]
[323422037,1713975071616,-393.65537671,0.00012328,2]
[323422038,1713975072408,-501.17248141,0.00010958,2]
[323422039,1713975072419,-227.48327723,0.00012328,2]
[323422040,1713975072429,-500.0,0.00012328,2]
[323422041,1713975072438,-419.95064744,0.00012328,2]
[323422042,1713975072474,-344.47698572,0.00012328,2]
[323422046,1713975441116,151.0,0.00020469,120]
[323422050,1713975819082,691.39,8.219e-05,2]
[323422052,1713975992890,151.0,0.00019508,120]
[323422136,1713976231518,-150.0,9.395e-05,2]
[323422139,1713976231528,-2738.53944366,9.396e-05,2]
[323422150,1713976231580,-1707.40804999,9.396e-05,2]
[323422152,1713976231700,-425.24221204,9.396e-05,2]
[323422153,1713976231712,-18484.06620171,9.396e-05,2]
[323422154,1713976231721,-18815.12651011,9.397e-05,2]
[323422155,1713976231763,-5084.87348989,9.397e-05,2]
[323422156,1713976231772,-688.0,9.415e-05,2]
[323422157,1713976231782,-1007.94478004,9.502e-05,2]
[323422158,1713976231797,-19443.11646185,9.503e-05,2]
[323422159,1713976231806,-185.77,9.505e-05,2]
[323422160,1713976231816,-500.0,9.524e-05,2]
[323422161,1713976231825,-6664.04,9.528e-05,2]
[323422162,1713976231835,-250.0,9.579e-05,2]
[323422163,1713976231844,-425.78,9.597e-05,2]
[323422164,1713976231853,-312.0,9.655e-05,2]
[323422165,1713976231863,-150.3,9.662e-05,2]
[323422166,1713976231878,-286.59,9.67e-05,2]
[323422167,1713976231887,-166.8,9.688e-05,2]